fUSD/lending_fUSD_20240109
["ID","MTS","AMOUNT","RATE_DAILY","PERIOD"]
[310977164,1704838295012,-500.0,0.00041342,30]
[310977165,1704838295021,-500.0,0.00041342,30]
[310977166,1704838295031,-629.6,0.00041342,30]
[310977167,1704838295040,-1000.0,0.00041342,30]
[310977168,1704838295050,-500.0,0.00041342,30]
[310977169,1704838295059,-500.0,0.00041342,30]
[310977170,1704838295072,-954.8,0.00041342,30]
[310977171,1704838295082,-230.88576098,0.00041342,30]
[310977172,1704838295092,-500.0,0.00041342,30]
[310977173,1704838295102,-731.3,0.00041342,30]
[310977174,1704838295111,-500.0,0.00041342,30]
[310977175,1704838295121,-500.0,0.00041342,30]
[310977176,1704838295130,-500.0,0.00041342,30]
[310977177,1704838295140,-500.0,0.00041342,30]
[310977178,1704838295150,-500.0,0.00041342,30]
[310977179,1704838295160,-965.23,0.00041342,30]
[310977180,1704838295174,-715.75,0.00041342,30]
[310977181,1704838295184,-500.0,0.00041342,30]
[310977182,1704838295194,-500.0,0.00041342,30]
[310977183,1704838295204,-500.0,0.00041342,30]
[310977184,1704838295213,-500.0,0.00041342,30]
[310977185,1704838295225,-868.98,0.00041342,30]
[310977186,1704838295234,-500.0,0.00041342,30]
[310977187,1704838295244,-605.08,0.00041342,30]
[310977188,1704838295254,-793.55,0.00041342,30]
[310977189,1704838295264,-1000.0,0.00041342,10]
[310977190,1704838295273,-500.0,0.00041342,30]
[310977191,1704838295283,-940.16,0.00041342,30]
[310977192,1704838295292,-586.7,0.00041342,30]
[310977193,1704838295301,-629.82,0.00041342,30]
[310977194,1704838295311,-500.0,0.00041342,30]
[310977195,1704838295322,-826.1,0.00041342,30]
[310977196,1704838295334,-500.0,0.00041342,30]
[310977197,1704838295343,-672.75,0.00041342,30]
[310977198,1704838295352,-500.0,0.00041342,30]
[310977199,1704838295362,-207.12506175,0.00041342,30]
[310977200,1704838295372,-500.0,0.00041342,30]
[310977201,1704838295382,-500.0,0.00041342,30]
[310977202,1704838295391,-500.0,0.00041342,30]
[310977203,1704838295400,-500.0,0.00041342,30]
[310977204,1704838295410,-500.0,0.00041342,30]
[310977205,1704838295420,-1579.44,0.00041342,30]
[310977206,1704838295430,-913.61,0.00041342,30]
[310977207,1704838295441,-500.0,0.00041342,30]
[310977208,1704838295451,-500.0,0.00041342,30]
[310977209,1704838295461,-740.8,0.00041342,30]
[310977210,1704838295471,-1195.0,0.00041342,30]
[310977211,1704838295481,-500.0,0.00041342,30]
[310977212,1704838295491,-500.0,0.00041342,30]
[310977213,1704838295501,-500.0,0.00041342,30]
[310977214,1704838295512,-284.52517481,0.00041342,30]
[310977215,1704838295521,-537.75,0.00041342,30]
[310977216,1704838295531,-500.0,0.00041342,30]
[310977217,1704838295542,-500.0,0.00041342,30]
[310977218,1704838295552,-758.11,0.00041342,30]
[310977219,1704838295562,-500.0,0.00041342,30]
[310977220,1704838295574,-1327.58,0.00041342,30]
[310977221,1704838295584,-500.0,0.00041342,30]
[310977222,1704838295594,-500.0,0.00041342,30]
[310977223,1704838295604,-273.2544936,0.00041342,30]
[310977224,1704838295614,-500.0,0.00041342,30]
[310977225,1704838295624,-500.0,0.00041342,30]
[310977226,1704838295634,-500.0,0.00041342,30]
[310977227,1704838295645,-526.19,0.00041342,30]
[310977228,1704838295655,-500.0,0.00041342,30]
[310977229,1704838295664,-500.0,0.00041342,30]
[310977230,1704838295674,-500.0,0.00041342,30]
[310977231,1704838295683,-1553.12,0.00041342,30]
[310977232,1704838295693,-227.22020381,0.00041342,30]
[310977233,1704838295702,-627.74,0.00041342,30]
[310977234,1704838295712,-500.0,0.00041342,30]
[310977235,1704838295721,-500.0,0.00041342,30]
[310977236,1704838295731,-813.03,0.00041342,30]
[310977237,1704838295740,-500.0,0.00041342,30]
[310977238,1704838295750,-500.0,0.00041342,30]
[310977239,1704838295760,-1218.54,0.00041342,30]
[310977240,1704838295770,-500.0,0.00041342,30]
[310977241,1704838295779,-500.0,0.00041342,30]
[310977242,1704838295789,-500.0,0.00041342,30]
[310977243,1704838295798,-930.98,0.00041342,30]
[310977244,1704838295807,-500.0,0.00041342,30]
[310977245,1704838295817,-500.0,0.00041342,30]
[310977246,1704838295828,-528.15,0.00041342,30]
[310977247,1704838295837,-778.06,0.00041342,30]
[310977248,1704838295847,-500.0,0.00041342,30]
[310977249,1704838295856,-750.76,0.00041342,30]
[310977250,1704838295865,-500.0,0.00041342,30]
[310977251,1704838295875,-630.23,0.00041342,30]
[310977252,1704838295885,-1131.88,0.00041342,30]
[310977253,1704838295895,-1105.98,0.00041342,30]
[310977254,1704838295905,-500.0,0.00041342,30]
[310977255,1704838295915,-1116.21,0.00041342,30]
[310977256,1704838295924,-565.46,0.00041342,30]
[310977257,1704838295934,-500.0,0.00041342,30]
[310977258,1704838295943,-1638.68,0.00041342,30]
[310977259,1704838295954,-500.0,0.00041342,30]
[310977260,1704838295964,-798.11,0.00041342,30]
[310977261,1704838295974,-500.0,0.00041342,30]
[310977262,1704838295983,-500.0,0.00041342,30]
[310977263,1704838295994,-500.0,0.00041342,30]
[310977264,1704838296003,-631.35,0.00041342,30]
[310977265,1704838296014,-500.0,0.00041342,30]
[310977266,1704838296023,-1492.74,0.00041342,30]
[310977267,1704838296034,-802.75,0.00041342,30]
[310977268,1704838296044,-500.0,0.00041342,30]
[310977269,1704838296053,-500.0,0.00041342,30]
[310977270,1704838296064,-500.0,0.00041342,30]
[310977271,1704838296076,-500.0,0.00041342,30]
[310977272,1704838296085,-1391.21,0.00041342,30]
[310977273,1704838296095,-500.0,0.00041342,30]
[310977274,1704838296106,-789.67,0.00041342,30]
[310977275,1704838296115,-500.0,0.00041342,30]
[310977276,1704838296125,-800.32,0.00041342,30]
[310977277,1704838296135,-525.86,0.00041342,30]
[310977278,1704838296144,-603.33,0.00041342,30]
[310977279,1704838296154,-608.68,0.00041342,30]
[310977280,1704838296165,-1077.3,0.00041342,30]
[310977281,1704838296175,-669.59,0.00041342,30]
[310977282,1704838296186,-500.0,0.00041342,30]
[310977283,1704838296195,-500.0,0.00041342,30]
[310977284,1704838296205,-500.0,0.00041342,30]
[310977285,1704838296214,-500.0,0.00041342,30]
[310977286,1704838296226,-936.91,0.00041342,30]
[310977287,1704838296235,-500.0,0.00041342,30]
[310977288,1704838296245,-250.0,0.00041342,30]
[310977289,1704838296256,-500.0,0.00041342,30]
[310977290,1704838296266,-1709.05,0.00041342,30]
[310977291,1704838296276,-500.0,0.00041342,30]
[310977292,1704838296285,-500.0,0.00041342,30]
[310977293,1704838296294,-500.0,0.00041342,30]
[310977294,1704838296304,-500.0,0.00041342,30]
[310977295,1704838296314,-1041.32,0.00041342,30]
[310977296,1704838296327,-509.62,0.00041342,30]
[310977297,1704838296337,-500.0,0.00041342,30]
[310977298,1704838296347,-827.64,0.00041342,30]
[310977299,1704838296357,-500.0,0.00041342,30]
[310977300,1704838296366,-500.0,0.00041342,30]
[310977301,1704838296376,-500.0,0.00041342,30]
[310977302,1704838296385,-1164.73,0.00041342,30]
[310977303,1704838296394,-840.51,0.00041342,30]
[310977304,1704838296404,-500.0,0.00041342,30]
[310977305,1704838296413,-500.0,0.00041342,30]
[310977306,1704838296422,-511.73,0.00041342,30]
[310977307,1704838296432,-500.0,0.00041342,30]
[310977308,1704838296441,-516.06,0.00041342,30]
[310977309,1704838296452,-500.0,0.00041342,30]
[310977310,1704838296465,-500.0,0.00041342,30]
[310977311,1704838296475,-500.0,0.00041342,30]
[310977312,1704838296485,-500.0,0.00041342,30]
[310977313,1704838296495,-500.0,0.00041342,30]
[310977314,1704838296504,-510.19,0.00041342,30]
[310977315,1704838296514,-500.0,0.00041342,30]
[310977316,1704838296524,-1092.61,0.00041342,30]
[310977317,1704838296534,-500.0,0.00041342,30]
[310977318,1704838296544,-500.0,0.00041342,30]
[310977319,1704838296553,-500.0,0.00041342,30]
[310977320,1704838296564,-500.0,0.00041342,30]
[310977321,1704838296577,-500.0,0.00041342,30]
[310977322,1704838296587,-500.0,0.00041342,30]
[310977323,1704838296596,-500.0,0.00041342,30]
[310977324,1704838296605,-500.0,0.00041342,30]
[310977325,1704838296614,-629.76275019,0.00041342,30]
[310977326,1704838296624,-500.0,0.00041342,30]
[310977327,1704838296634,-500.0,0.00041342,30]
[310977328,1704838296644,-500.0,0.00041342,30]
[310977329,1704838296654,-1360.4,0.00041342,30]
[310977330,1704838296664,-500.0,0.00041342,30]
[310977331,1704838296673,-1761.96,0.00041342,30]
[310977332,1704838296683,-704.3,0.00041342,30]
[310977333,1704838296692,-500.0,0.00041342,30]
[310977334,1704838296702,-500.0,0.00041342,30]
[310977335,1704838296711,-500.0,0.00041342,30]
[310977336,1704838296721,-500.0,0.00041342,30]
[310977337,1704838296730,-500.0,0.00041342,30]
[310977338,1704838296740,-861.7,0.00041342,30]
[310977339,1704838296749,-943.22,0.00041342,30]
[310977340,1704838296759,-699.02,0.00041342,30]
[310977341,1704838296768,-826.82,0.00041342,30]
[310977342,1704838296778,-500.0,0.00041342,30]
[310977343,1704838296788,-500.0,0.00041342,30]
[310977344,1704838296797,-594.11,0.00041342,30]
[310977345,1704838296807,-500.0,0.00041342,30]
[310977346,1704838296817,-1067.02,0.00041342,30]
[310977347,1704838296828,-500.0,0.00041342,30]
[310977348,1704838296838,-500.0,0.00041342,30]
[310977349,1704838296848,-510.36,0.00041342,30]
[310977350,1704838296857,-321.6491144,0.00041342,30]
[310977351,1704838296867,-500.0,0.00041342,2]
[310977352,1704838296877,-500.0,0.00041342,30]
[310977353,1704838296887,-2016.86,0.00041342,30]
[310977354,1704838296897,-500.0,0.00041342,30]
[310977355,1704838296907,-500.0,0.00041342,30]
[310977356,1704838296917,-500.0,0.00041342,30]
[310977357,1704838296926,-500.0,0.00041342,30]
[310977358,1704838296936,-1173.29,0.00041342,30]
[310977359,1704838296945,-591.37,0.00041342,30]
[310977360,1704838296955,-500.0,0.00041342,30]
[310977361,1704838296965,-862.87,0.00041342,30]
[310977362,1704838296975,-500.0,0.00041342,30]
[310977363,1704838296984,-1728.77,0.00041342,30]
[310977364,1704838296994,-500.0,0.00041342,30]
[310977365,1704838297003,-1603.78,0.00041342,30]
[310977366,1704838297013,-506.6,0.00041342,30]
[310977367,1704838297022,-500.0,0.00041342,30]
[310977368,1704838297031,-691.21,0.00041342,30]
[310977369,1704838297041,-500.0,0.00041342,30]
[310977370,1704838297051,-173.66733635,0.00041342,30]
[310977371,1704838297062,-500.0,0.00041342,30]
[310977372,1704838297074,-500.0,0.00041342,30]
[310977373,1704838297084,-508.63604658,0.00041342,30]
[310977374,1704838297093,-616.24,0.00041342,30]
[310977375,1704838297102,-500.0,0.00041342,30]
[310977376,1704838297111,-500.0,0.00041342,30]
[310977377,1704838297120,-686.18,0.00041342,30]
[310977378,1704838297130,-663.05,0.00041342,30]
[310977379,1704838297139,-500.0,0.00041342,30]
[310977380,1704838297148,-500.0,0.00041342,30]
[310977381,1704838297158,-500.0,0.00041342,30]
[310977382,1704838297167,-796.05,0.00041342,30]
[310977383,1704838297176,-988.23,0.00041342,30]
[310977384,1704838297185,-926.22,0.00041342,30]
[310977385,1704838297195,-605.45,0.00041342,6]
[310977386,1704838297204,-1356.8,0.00041342,30]
[310977387,1704838297214,-500.0,0.00041342,30]
[310977388,1704838297223,-500.0,0.00041342,30]
[310977389,1704838297233,-514.19,0.00041342,30]
[310977390,1704838297242,-711.06,0.00041342,30]
[310977391,1704838297251,-500.0,0.00041342,30]
[310977392,1704838297261,-1957.66,0.00041342,30]
[310977393,1704838297270,-683.33,0.00041342,30]
[310977394,1704838297279,-500.0,0.00041342,30]
[310977395,1704838297288,-500.0,0.00041342,30]
[310977396,1704838297297,-803.13,0.00041342,30]
[310977397,1704838297307,-152.24628968,0.00041342,30]
[310977398,1704838297316,-1229.9,0.00041342,30]
[310977399,1704838297327,-500.0,0.00041342,30]
[310977400,1704838297337,-500.0,0.00041342,30]
[310977401,1704838297347,-816.32,0.00041342,30]
[310977402,1704838297357,-555.56,0.00041342,30]
[310977403,1704838297366,-651.53,0.00041342,30]
[310977404,1704838297376,-627.3,0.00041342,30]
[310977405,1704838297385,-500.0,0.00041342,30]
[310977406,1704838297394,-500.0,0.00041342,30]
[310977407,1704838297404,-688.6,0.00041342,30]
[310977408,1704838297413,-500.0,0.00041342,30]
[310977409,1704838297423,-572.21,0.00041342,30]
[310977410,1704838297433,-500.0,0.00041342,30]
[310977411,1704838297442,-500.0,0.00041342,30]
[310977412,1704838297452,-500.0,0.00041342,30]
[310977413,1704838297461,-1308.0,0.00041342,30]
[310977414,1704838297470,-500.0,0.00041342,30]
[310977415,1704838297479,-500.0,0.00041342,30]
[310977416,1704838297489,-500.0,0.00041342,30]
[310977417,1704838297499,-500.0,0.00041342,30]
[310977418,1704838297508,-633.27,0.00041342,30]
[310977419,1704838297518,-500.0,0.00041342,30]
[310977420,1704838297528,-886.58,0.00041342,30]
[310977421,1704838297538,-1462.94,0.00041342,30]
[310977422,1704838297548,-500.0,0.00041342,30]
[310977423,1704838297558,-500.0,0.00041342,30]
[310977424,1704838297570,-374.379538,0.00041342,30]
[310977425,1704838297580,-500.0,0.00041342,30]
[310977426,1704838297590,-500.0,0.00041342,30]
[310977427,1704838297600,-727.24,0.00041342,30]
[310977428,1704838297610,-500.0,0.00041342,30]
[310977429,1704838297620,-500.0,0.00041342,30]
[310977430,1704838297629,-1000.0,0.00041342,7]
[310977431,1704838297639,-1914.86,0.00041342,30]
[310977432,1704838297649,-601.88,0.00041342,30]
[310977433,1704838297660,-500.0,0.00041342,30]
[310977434,1704838297670,-500.0,0.00041342,30]
[310977435,1704838297679,-580.89,0.00041342,30]
[310977436,1704838297689,-915.42,0.00041342,30]
[310977437,1704838297699,-545.07,0.00041342,30]
[310977438,1704838297709,-829.5,0.00041342,30]
[310977439,1704838297719,-695.09,0.00041342,30]
[310977440,1704838297728,-508.88,0.00041342,30]
[310977441,1704838297738,-935.65,0.00041342,30]
[310977442,1704838297749,-588.03,0.00041342,30]
[310977443,1704838297760,-500.0,0.00041342,30]
[310977444,1704838297770,-610.47,0.00041342,30]
[310977445,1704838297780,-844.75,0.00041342,30]
[310977446,1704838297790,-1122.31,0.00041342,30]
[310977447,1704838297800,-500.0,0.00041342,30]
[310977448,1704838297810,-500.0,0.00041342,30]
[310977449,1704838297822,-742.19,0.00041342,30]
[310977450,1704838297833,-502.71,0.00041342,30]
[310977451,1704838297843,-500.0,0.00041342,30]
[310977452,1704838297853,-500.0,0.00041342,30]
[310977453,1704838297864,-500.0,0.00041342,30]
[310977454,1704838297874,-830.81,0.00041342,30]
[310977455,1704838297884,-500.0,0.00041342,30]
[310977456,1704838297894,-654.63,0.00041342,30]
[310977457,1704838297904,-514.17,0.00041342,30]
[310977458,1704838297913,-919.89,0.00041342,30]
[310977459,1704838297923,-500.0,0.00041342,30]
[310977460,1704838297933,-500.0,0.00041342,30]
[310977461,1704838297943,-500.0,0.00041342,30]
[310977462,1704838297952,-500.0,0.00041342,30]
[310977463,1704838297963,-500.0,0.00041342,30]
[310977464,1704838297973,-1129.63,0.00041342,30]
[310977465,1704838297983,-500.0,0.00041342,30]
[310977466,1704838297992,-500.0,0.00041342,30]
[310977467,1704838298002,-500.0,0.00041342,30]
[310977468,1704838298012,-500.0,0.00041342,30]
[310977469,1704838298022,-500.0,0.00041342,30]
[310977470,1704838298032,-500.0,0.00041342,30]
[310977471,1704838298042,-613.36,0.00041342,30]
[310977472,1704838298052,-500.0,0.00041342,30]
[310977473,1704838298062,-666.21,0.00041342,30]
[310977474,1704838298073,-638.54,0.00041342,30]
[310977475,1704838298083,-500.0,0.00041342,30]
[310977476,1704838298093,-663.01,0.00041342,30]
[310977477,1704838298103,-853.39,0.00041342,30]
[310977478,1704838298112,-500.0,0.00041342,30]
[310977479,1704838298122,-500.0,0.00041342,2]
[310977480,1704838298132,-557.76,0.00041342,30]
[310977481,1704838298142,-715.94,0.00041342,30]
[310977482,1704838298151,-500.0,0.00041342,30]
[310977483,1704838298161,-500.0,0.00041342,30]
[310977484,1704838298172,-500.0,0.00041342,30]
[310977485,1704838298182,-500.0,0.00041342,30]
[310977486,1704838298192,-500.0,0.00041342,30]
[310977487,1704838298202,-500.0,0.00041342,30]
[310977488,1704838298212,-1200.54,0.00041342,30]
[310977489,1704838298222,-500.0,0.00041342,30]
[310977490,1704838298231,-500.0,0.00041342,30]
[310977491,1704838298242,-500.0,0.00041342,30]
[310977492,1704838298253,-500.0,0.00041342,30]
[310977493,1704838298263,-500.0,0.00041342,30]
[310977494,1704838298273,-805.96,0.00041342,30]
[310977495,1704838298283,-500.0,0.00041342,30]
[310977496,1704838298293,-500.0,0.00041342,30]
[310977497,1704838298303,-533.98179265,0.00041342,30]
[310977498,1704838298313,-500.0,0.00041342,30]
[310977499,1704838298323,-500.0,0.00041342,30]
[310977500,1704838298334,-500.0,0.00041342,30]
[310977501,1704838298344,-534.28,0.00041342,30]
[310977502,1704838298354,-500.0,0.00041342,30]
[310977503,1704838298364,-771.52,0.00041342,30]
[310977504,1704838298374,-500.0,0.00041342,30]
[310977505,1704838298384,-500.0,0.00041342,30]
[310977506,1704838298394,-500.0,0.00041342,30]
[310977507,1704838298404,-711.66,0.00041342,30]
[310977508,1704838298413,-500.0,0.00041342,30]
[310977509,1704838298424,-500.0,0.00041342,30]
[310977510,1704838298434,-500.0,0.00041342,30]
[310977511,1704838298444,-717.43,0.00041342,30]
[310977512,1704838298454,-975.47,0.00041342,30]
[310977513,1704838298465,-500.0,0.00041342,30]
[310977514,1704838298474,-500.0,0.00041342,30]
[310977515,1704838298484,-500.0,0.00041342,30]
[310977516,1704838298494,-500.0,0.00041342,30]
[310977517,1704838298504,-1000.0,0.00041342,30]
[310977518,1704838298514,-500.0,0.00041342,30]
[310977519,1704838298524,-500.0,0.00041342,30]
[310977520,1704838298533,-811.72,0.00041342,30]
[310977521,1704838298543,-500.0,0.00041342,30]
[310977522,1704838298553,-1470.07,0.00041342,30]
[310977523,1704838298563,-1184.23,0.00041342,30]
[310977524,1704838298575,-500.0,0.00041342,30]
[310977525,1704838298585,-500.0,0.00041342,30]
[310977526,1704838298601,-500.0,0.00041342,7]
[310977527,1704838298615,-546.94,0.00041342,30]
[310977528,1704838298624,-500.0,0.00041342,30]
[310977529,1704838298634,-500.0,0.00041342,30]
[310977530,1704838298644,-500.0,0.00041342,30]
[310977531,1704838298655,-514.97,0.00041342,30]
[310977532,1704838298666,-554.43,0.00041342,30]
[310977533,1704838298676,-500.0,0.00041342,30]
[310977534,1704838298686,-693.86,0.00041342,30]
[310977535,1704838298696,-926.72,0.00041342,30]
[310977536,1704838298706,-500.0,0.00041342,30]
[310977537,1704838298716,-948.49,0.00041342,30]
[310977538,1704838298726,-500.0,0.00041342,30]
[310977539,1704838298736,-500.0,0.00041342,30]
[310977540,1704838298747,-500.0,0.00041342,30]
[310977541,1704838298756,-948.28,0.00041342,30]
[310977542,1704838298767,-563.2,0.00041342,30]
[310977543,1704838298776,-1417.25,0.00041342,30]
[310977544,1704838298786,-882.71,0.00041342,30]
[310977545,1704838298796,-500.0,0.00041342,30]
[310977546,1704838298806,-686.66,0.00041342,30]
[310977547,1704838298817,-500.0,0.00041342,30]
[310977548,1704838298830,-500.0,0.00041342,30]
[310977549,1704838298840,-500.0,0.00041342,30]
[310977550,1704838298849,-500.0,0.00041342,30]
[310977551,1704838298859,-766.36,0.00041342,30]
[310977552,1704838298869,-500.0,0.00041342,30]
[310977553,1704838298879,-1150.95,0.00041342,30]
[310977554,1704838298889,-1076.63,0.00041342,30]
[310977555,1704838298898,-500.0,0.00041342,30]
[310977556,1704838298908,-522.65,0.00041342,30]
[310977557,1704838298918,-1195.65,0.00041342,30]
[310977558,1704838298929,-1655.71,0.00041342,30]
[310977559,1704838298939,-500.0,0.00041342,30]
[310977560,1704838298949,-500.0,0.00041342,30]
[310977561,1704838298959,-500.0,0.00041342,30]
[310977562,1704838298969,-561.13,0.00041342,30]
[310977563,1704838298979,-500.0,0.00041342,30]
[310977564,1704838298989,-500.0,0.00041342,30]
[310977565,1704838298999,-500.0,0.00041342,30]
[310977566,1704838299009,-500.0,0.00041342,30]
[310977567,1704838299019,-1772.94,0.00041342,30]
[310977568,1704838299028,-500.0,0.00041342,30]
[310977569,1704838299038,-500.0,0.00041342,30]
[310977570,1704838299048,-500.0,0.00041342,30]
[310977571,1704838299058,-962.61,0.00041342,30]
[310977572,1704838299068,-574.09,0.00041342,30]
[310977573,1704838299080,-1512.77,0.00041342,30]
[310977574,1704838299090,-500.0,0.00041342,30]
[310977575,1704838299099,-500.0,0.00041342,30]
[310977576,1704838299109,-500.0,0.00041342,30]
[310977577,1704838299119,-500.0,0.00041342,30]
[310977578,1704838299128,-620.4,0.00041342,30]
[310977579,1704838299138,-726.32,0.00041342,30]
[310977580,1704838299148,-500.0,0.00041342,30]
[310977581,1704838299157,-500.0,0.00041342,30]
[310977582,1704838299167,-500.0,0.00041342,30]
[310977583,1704838299176,-4344.57,0.00041342,30]
[310977584,1704838299186,-1267.88,0.00041342,30]
[310977585,1704838299195,-233.8,0.00041342,30]
[310977586,1704838299205,-500.0,0.00041342,30]
[310977587,1704838299214,-500.0,0.00041342,30]
[310977588,1704838299224,-500.0,0.00041342,30]
[310977589,1704838299233,-500.0,0.00041342,30]
[310977590,1704838299242,-500.0,0.00041342,30]
[310977591,1704838299252,-500.0,0.00041342,30]
[310977592,1704838299261,-994.56,0.00041342,30]
[310977593,1704838299271,-808.78,0.00041342,30]
[310977594,1704838299281,-1000.0,0.00041342,30]
[310977595,1704838299290,-500.0,0.00041342,30]
[310977596,1704838299300,-500.0,0.00041342,30]
[310977597,1704838299309,-1548.01,0.00041342,30]
[310977598,1704838299319,-1847.0,0.00041342,30]
[310977599,1704838299330,-818.42,0.00041342,30]
[310977600,1704838299340,-500.0,0.00041342,30]
[310977601,1704838299349,-500.0,0.00041342,30]
[310977602,1704838299359,-1398.94,0.00041342,30]
[310977603,1704838299368,-500.0,0.00041342,30]
[310977604,1704838299378,-608.39,0.00041342,30]
[310977605,1704838299387,-612.28,0.00041342,30]
[310977606,1704838299397,-500.0,0.00041342,30]
[310977607,1704838299406,-500.0,0.00041342,30]
[310977608,1704838299416,-500.0,0.00041342,30]
[310977609,1704838299426,-500.0,0.00041342,30]
[310977610,1704838299435,-500.0,0.00041342,30]
[310977611,1704838299445,-500.0,0.00041342,30]
[310977612,1704838299455,-900.47,0.00041342,10]
[310977613,1704838299465,-549.8,0.00041342,30]
[310977614,1704838299474,-723.87,0.00041342,30]
[310977615,1704838299484,-2028.27,0.00041342,30]
[310977616,1704838299494,-2514.08,0.00041342,30]
[310977617,1704838299504,-500.0,0.00041342,30]
[310977618,1704838299514,-1147.93,0.00041342,30]
[310977619,1704838299524,-500.0,0.00041342,30]
[310977620,1704838299534,-2024.87,0.00041342,30]
[310977621,1704838299543,-500.0,0.00041342,30]
[310977622,1704838299553,-899.03,0.00041342,30]
[310977623,1704838299563,-500.0,0.00041342,30]
[310977624,1704838299574,-500.0,0.00041342,30]
[310977625,1704838299584,-607.6,0.00041342,30]
[310977626,1704838299594,-1740.87,0.00041342,30]
[310977627,1704838299604,-500.0,0.00041342,30]
[310977628,1704838299614,-500.0,0.00041342,30]
[310977629,1704838299624,-1137.4,0.00041342,30]
[310977630,1704838299634,-1102.73,0.00041342,30]
[310977631,1704838299643,-500.0,0.00041342,30]
[310977632,1704838299653,-2568.33,0.00041342,30]
[310977633,1704838299662,-8096.32,0.00041342,30]
[310977634,1704838299672,-500.0,0.00041342,30]
[310977635,1704838299681,-500.0,0.00041342,30]
[310977636,1704838299691,-1731.94,0.00041342,30]
[310977637,1704838299701,-500.0,0.00041342,30]
[310977638,1704838299710,-889.91,0.00041342,30]
[310977639,1704838299720,-500.0,0.00041342,30]
[310977640,1704838299730,-500.0,0.00041342,30]
[310977641,1704838299740,-869.4,0.00041342,30]
[310977642,1704838299749,-588.64,0.00041342,30]
[310977643,1704838299759,-500.0,0.00041342,30]
[310977644,1704838299769,-573.17,0.00041342,30]
[310977645,1704838299779,-2390.88,0.00041342,30]
[310977646,1704838299790,-530.46,0.00041342,30]
[310977647,1704838299803,-1686.48,0.00041342,30]
[310977648,1704838299814,-1139.86,0.00041342,30]
[310977649,1704838299825,-500.0,0.00041342,30]
[310977650,1704838300117,-1680.83,0.00041342,30]
[310977651,1704838300135,-1855.67,0.00041342,30]
[310977652,1704838300158,-964.43,0.00041342,30]
[310977653,1704838300167,-1222.91,0.00041342,30]
[310977654,1704838300177,-500.0,0.00041342,30]
[310977655,1704838300186,-500.0,0.00041342,30]
[310977656,1704838300195,-1068.17,0.00041342,30]
[310977657,1704838300205,-4050.58,0.00041342,30]
[310977658,1704838300214,-500.0,0.00041342,30]
[310977659,1704838300225,-500.0,0.00041342,30]
[310977660,1704838300234,-500.0,0.00041342,30]
[310977661,1704838300243,-500.0,0.00041342,30]
[310977662,1704838300253,-500.0,0.00041342,30]
[310977663,1704838300263,-500.0,0.00041342,30]